[Event "Titled Tuesday Blitz December 27 Late 2022"]
[White "Myers, Dominique"]
[Black "Poltorak, Sebastian"]
[WhiteFideId "2041715"]
[BlackFideId "1199498"]
[WhiteElo "2042"]
[BlackElo "2354"]
[Result "0-1"]
[Round "03"]
[TimeControl "180+2"]
[Date "2022.12.27"]
[WhiteClock "0:01:38"]
[BlackClock "0:01:34"]

1. e4 {[%clk 0:03:00]}  c5 {[%clk 0:02:57]} 2. Nf3 {[%clk 0:02:46]}  Nc6 {[%clk 0:02:57]} 3. d4 {[%clk 0:02:44]}  cxd4 {[%clk 0:02:57]} 4. c3 {[%clk 0:02:45]}  Nf6 {[%clk 0:02:57]} 5. e5 {[%clk 0:02:36]}  Nd5 {[%clk 0:02:58]} 6. Bc4 {[%clk 0:02:34]}  Nb6 {[%clk 0:02:56]} 7. Bb3 {[%clk 0:02:34]}  d5 {[%clk 0:02:56]} 8. cxd4 {[%clk 0:02:28]}  Bg4 {[%clk 0:02:55]} 9. Be3 {[%clk 0:02:28]}  e6 {[%clk 0:02:53]} 10. a3 {[%clk 0:02:28]}  Be7 {[%clk 0:02:50]} 11. O-O {[%clk 0:02:28]}  Rc8 {[%clk 0:02:47]} 12. Nc3 {[%clk 0:02:28]}  a6 {[%clk 0:02:42]} 13. Rc1 {[%clk 0:02:28]}  Na5 {[%clk 0:02:40]} 14. Bc2 {[%clk 0:02:26]}  Nac4 {[%clk 0:02:40]} 15. Rb1 {[%clk 0:02:23]}  Nxe3 {[%clk 0:02:36]} 16. fxe3 {[%clk 0:02:23]}  Nc4 {[%clk 0:02:37]} 17. Qd3 {[%clk 0:02:22]}  Bf5 {[%clk 0:02:35]} 18. Qe2 {[%clk 0:02:22]}  Bxc2 {[%clk 0:02:34]} 19. Qxc2 {[%clk 0:02:23]}  Nxe3 {[%clk 0:02:34]} 20. Qf2 {[%clk 0:02:23]}  Nxf1 {[%clk 0:02:34]} 21. Rxf1 {[%clk 0:02:23]}  O-O {[%clk 0:02:17]} 22. Qg3 {[%clk 0:02:21]}  Qb6 {[%clk 0:02:12]} 23. Rf2 {[%clk 0:02:20]}  Bxa3 {[%clk 0:01:54]} 24. Ne2 {[%clk 0:02:00]}  Qxb2 {[%clk 0:01:42]} 25. h4 {[%clk 0:02:00]}  Rc2 {[%clk 0:01:38]} 26. Kf1 {[%clk 0:01:52]}  Qb1+ {[%clk 0:01:33]} 27. Ne1 {[%clk 0:01:51]}  Bb4 {[%clk 0:01:33]} 28. Rf3 {[%clk 0:01:44]}  Qxe1+ {[%clk 0:01:31]} 29. Qxe1 {[%clk 0:01:45]}  Bxe1 {[%clk 0:01:32]} 30. Kxe1 {[%clk 0:01:46]}  Rfc8 {[%clk 0:01:32]} 31. Rb3 {[%clk 0:01:46]}  b5 {[%clk 0:01:33]} 32. Ra3 {[%clk 0:01:46]}  R8c6 {[%clk 0:01:33]} 33. Kd1 {[%clk 0:01:46]}  R2c4 {[%clk 0:01:33]} 34. g4 {[%clk 0:01:45]}  Ra4 {[%clk 0:01:33]} 35. Rb3 {[%clk 0:01:46]}  b4 {[%clk 0:01:33]} 36. Kd2 {[%clk 0:01:45]}  a5 {[%clk 0:01:34]} 37. Nc1 {[%clk 0:01:44]}  Ra3 {[%clk 0:01:34]} 38. Rb2 {[%clk 0:01:45]}  Rc4 {[%clk 0:01:34]} 39. Nb3 {[%clk 0:01:43]}  a4 {[%clk 0:01:34]} 40. Nc5 {[%clk 0:01:43]}  b3 {[%clk 0:01:34]} 41. Kd3 {[%clk 0:01:42]}  Ra2 {[%clk 0:01:34]} 42. Rb1 {[%clk 0:01:42]}  b2 {[%clk 0:01:34]} 43. g5 {[%clk 0:01:38]}  a3 {[%clk 0:01:34]} 44. h5 {[%clk 0:01:38]}  Ra1 {[%clk 0:01:34]} 0-1


[Site "https://www.chess.com"]

[Event "Titled Tuesday Blitz December 27 Late 2022"]
[White "Omariev, Maksim"]
[Black "gshwbedhkhd"]
[WhiteFideId "4193423"]
[WhiteElo "2304"]
[BlackElo "2538"]
[Result "0-1"]
[Round "03"]
[TimeControl "180+2"]
[Date "2022.12.27"]
[WhiteClock "0:00:02"]
[BlackClock "0:00:20"]

1. e4 {[%clk 0:02:57]}  c6 {[%clk 0:02:57]} 2. Nc3 {[%clk 0:02:54]}  d5 {[%clk 0:02:58]} 3. Nf3 {[%clk 0:02:54]}  Bg4 {[%clk 0:02:57]} 4. h3 {[%clk 0:02:54]}  Bh5 {[%clk 0:02:56]} 5. exd5 {[%clk 0:02:48]}  cxd5 {[%clk 0:02:57]} 6. Bb5+ {[%clk 0:02:47]}  Nc6 {[%clk 0:02:56]} 7. g4 {[%clk 0:02:48]}  Bg6 {[%clk 0:02:55]} 8. Ne5 {[%clk 0:02:48]}  Rc8 {[%clk 0:02:55]} 9. h4 {[%clk 0:02:43]}  f6 {[%clk 0:02:43]} 10. Nxc6 {[%clk 0:02:28]}  bxc6 {[%clk 0:02:41]} 11. Ba6 {[%clk 0:02:28]}  Rb8 {[%clk 0:02:40]} 12. h5 {[%clk 0:02:27]}  Bf7 {[%clk 0:02:39]} 13. d4 {[%clk 0:02:20]}  e5 {[%clk 0:02:31]} 14. Qe2 {[%clk 0:02:14]}  Bd6 {[%clk 0:02:25]} 15. b3 {[%clk 0:01:49]}  Ne7 {[%clk 0:02:16]} 16. dxe5 {[%clk 0:01:45]}  fxe5 {[%clk 0:02:14]} 17. h6 {[%clk 0:01:43]}  g6 {[%clk 0:02:13]} 18. Bb2 {[%clk 0:01:42]}  Qa5 {[%clk 0:02:08]} 19. O-O-O {[%clk 0:01:26]}  O-O {[%clk 0:02:05]} 20. Kb1 {[%clk 0:01:14]}  Rb6 {[%clk 0:01:48]} 21. Bd3 {[%clk 0:01:12]}  Rb4 {[%clk 0:01:09]} 22. f3 {[%clk 0:00:21]}  Rfb8 {[%clk 0:01:03]} 23. Rhe1 {[%clk 0:00:15]}  c5 {[%clk 0:00:55]} 24. Be4 {[%clk 0:00:04]}  d4 {[%clk 0:00:52]} 25. Ba1 {[%clk 0:00:02]}  c4 {[%clk 0:00:25]} 26. f4 {[%clk 0:00:02]}  cxb3 {[%clk 0:00:24]} 27. cxb3 {[%clk 0:00:02]}  Bxb3 {[%clk 0:00:24]} 28. axb3 {[%clk 0:00:02]}  Rxb3+ {[%clk 0:00:25]} 29. Bb2 {[%clk 0:00:02]}  Rxb2+ {[%clk 0:00:21]} 30. Qxb2 {[%clk 0:00:01]}  Rxb2+ {[%clk 0:00:22]} 31. Kxb2 {[%clk 0:00:02]}  Qxc3+ {[%clk 0:00:22]} 32. Kb1 {[%clk 0:00:02]}  Ba3 {[%clk 0:00:20]} 0-1


[Site "https://www.chess.com"]

[Event "Titled Tuesday Blitz December 27 Late 2022"]
[White "Petrovic, Aleksa"]
[Black "Kourkoulos-Arditis, Stamatis"]
[WhiteFideId "967629"]
[BlackFideId "4221990"]
[WhiteElo "2332"]
[BlackElo "2539"]
[Result "1-0"]
[Round "03"]
[TimeControl "180+2"]
[Date "2022.12.27"]
[WhiteClock "0:00:11"]
[BlackClock "0:00:07"]

1. d4 {[%clk 0:03:00]}  c5 {[%clk 0:03:00]} 2. d5 {[%clk 0:02:59]}  Nf6 {[%clk 0:03:00]} 3. Nc3 {[%clk 0:02:58]}  g6 {[%clk 0:03:00]} 4. e4 {[%clk 0:02:57]}  d6 {[%clk 0:03:00]} 5. Nf3 {[%clk 0:02:56]}  Bg7 {[%clk 0:02:58]} 6. h3 {[%clk 0:02:44]}  O-O {[%clk 0:02:58]} 7. a4 {[%clk 0:02:39]}  e6 {[%clk 0:02:58]} 8. dxe6 {[%clk 0:02:36]}  Bxe6 {[%clk 0:02:57]} 9. Be2 {[%clk 0:02:27]}  d5 {[%clk 0:02:55]} 10. exd5 {[%clk 0:02:24]}  Nxd5 {[%clk 0:02:55]} 11. Nxd5 {[%clk 0:02:23]}  Bxd5 {[%clk 0:02:51]} 12. O-O {[%clk 0:02:22]}  Nc6 {[%clk 0:02:50]} 13. c3 {[%clk 0:02:22]}  Re8 {[%clk 0:02:43]} 14. Be3 {[%clk 0:02:13]}  b6 {[%clk 0:02:41]} 15. Qc2 {[%clk 0:02:06]}  Be4 {[%clk 0:02:40]} 16. Qb3 {[%clk 0:02:03]}  h6 {[%clk 0:02:34]} 17. Rad1 {[%clk 0:02:00]}  Qc7 {[%clk 0:02:32]} 18. Nd2 {[%clk 0:01:50]}  Na5 {[%clk 0:02:23]} 19. Qa2 {[%clk 0:01:44]}  Bc2 {[%clk 0:02:23]} 20. Rc1 {[%clk 0:01:43]}  Bf5 {[%clk 0:02:18]} 21. Bb5 {[%clk 0:01:29]}  Re7 {[%clk 0:02:03]} 22. b4 {[%clk 0:01:13]}  Nb7 {[%clk 0:01:57]} 23. Rfe1 {[%clk 0:00:48]}  Rd8 {[%clk 0:01:55]} 24. Nc4 {[%clk 0:00:34]}  Be4 {[%clk 0:01:17]} 25. a5 {[%clk 0:00:29]}  Kh7 {[%clk 0:00:30]} 26. a6 {[%clk 0:00:25]}  Nd6 {[%clk 0:00:29]} 27. Bf4 {[%clk 0:00:23]}  Re6 {[%clk 0:00:15]} 28. Nxd6 {[%clk 0:00:21]}  Rdxd6 {[%clk 0:00:16]} 29. Bxd6 {[%clk 0:00:19]}  Qxd6 {[%clk 0:00:17]} 30. Bc4 {[%clk 0:00:18]}  Re5 {[%clk 0:00:15]} 31. Bxf7 {[%clk 0:00:17]}  cxb4 {[%clk 0:00:14]} 32. Rcd1 {[%clk 0:00:16]}  Qc6 {[%clk 0:00:12]} 33. Bg8+ {[%clk 0:00:13]}  Kh8 {[%clk 0:00:10]} 34. Rd8 {[%clk 0:00:13]}  Bf6 {[%clk 0:00:07]} 35. Bd5+ {[%clk 0:00:11]} 1-0


[Site "https://www.chess.com"]

[Event "Titled Tuesday Blitz December 27 Late 2022"]
[White "Pham, Khoi"]
[Black "Araujo, Everson De Moura"]
[WhiteFideId "1054988"]
[BlackFideId "22737197"]
[WhiteElo "2355"]
[BlackElo "1944"]
[Result "1-0"]
[Round "03"]
[TimeControl "180+2"]
[Date "2022.12.27"]
[WhiteClock "0:01:43"]
[BlackClock "0:00:58"]

1. c4 {[%clk 0:03:00]}  c5 {[%clk 0:02:58]} 2. Nc3 {[%clk 0:03:00]}  Nc6 {[%clk 0:02:58]} 3. g3 {[%clk 0:03:00]}  g6 {[%clk 0:02:59]} 4. Bg2 {[%clk 0:03:01]}  Bg7 {[%clk 0:02:59]} 5. Nf3 {[%clk 0:03:01]}  e5 {[%clk 0:02:59]} 6. d3 {[%clk 0:02:59]}  Nge7 {[%clk 0:02:59]} 7. O-O {[%clk 0:02:59]}  d6 {[%clk 0:02:58]} 8. a3 {[%clk 0:02:59]}  Be6 {[%clk 0:02:55]} 9. Rb1 {[%clk 0:02:59]}  a5 {[%clk 0:02:55]} 10. Nb5 {[%clk 0:02:58]}  O-O {[%clk 0:02:31]} 11. Ng5 {[%clk 0:02:44]}  Bg4 {[%clk 0:02:25]} 12. h3 {[%clk 0:02:41]}  Bd7 {[%clk 0:02:20]} 13. Nxd6 {[%clk 0:02:36]}  Bxh3 {[%clk 0:02:09]} 14. Ngxf7 {[%clk 0:02:10]}  Rxf7 {[%clk 0:01:58]} 15. Nxf7 {[%clk 0:02:11]}  Kxf7 {[%clk 0:01:58]} 16. Bxh3 {[%clk 0:02:10]}  Nd4 {[%clk 0:01:58]} 17. Bd2 {[%clk 0:02:04]}  a4 {[%clk 0:01:57]} 18. Bc3 {[%clk 0:02:03]}  Nec6 {[%clk 0:01:54]} 19. e3 {[%clk 0:02:01]}  Nb3 {[%clk 0:01:36]} 20. Qf3+ {[%clk 0:01:57]}  Kg8 {[%clk 0:01:23]} 21. Be6+ {[%clk 0:01:56]}  Kh8 {[%clk 0:01:22]} 22. Bd5 {[%clk 0:01:57]}  Qc7 {[%clk 0:01:16]} 23. Qe4 {[%clk 0:01:50]}  Rb8 {[%clk 0:01:06]} 24. f4 {[%clk 0:01:49]}  exf4 {[%clk 0:01:03]} 25. Qxf4 {[%clk 0:01:46]}  Bxc3 {[%clk 0:00:58]} 26. Qxc7 {[%clk 0:01:43]} 1-0


[Site "https://www.chess.com"]

[Event "Titled Tuesday Blitz December 27 Late 2022"]
[White "Pinheiro, Iung Alicio de O."]
[Black "Weisz, Bryan"]
[WhiteFideId "2104350"]
[BlackFideId "30934133"]
[WhiteElo "2306"]
[BlackElo "1973"]
[Result "0-1"]
[Round "03"]
[TimeControl "180+2"]
[Date "2022.12.27"]
[WhiteClock "0:00:01"]
[BlackClock "0:00:31"]

1. e4 {[%clk 0:02:50]}  Nf6 {[%clk 0:02:52]} 2. e5 {[%clk 0:02:42]}  Nd5 {[%clk 0:02:51]} 3. d4 {[%clk 0:02:42]}  d6 {[%clk 0:02:51]} 4. Nf3 {[%clk 0:02:40]}  dxe5 {[%clk 0:02:51]} 5. Nxe5 {[%clk 0:02:39]}  Nd7 {[%clk 0:02:51]} 6. Nf3 {[%clk 0:02:39]}  N7f6 {[%clk 0:02:43]} 7. c4 {[%clk 0:02:31]}  Nb6 {[%clk 0:02:39]} 8. Nc3 {[%clk 0:02:26]}  Bf5 {[%clk 0:02:32]} 9. c5 {[%clk 0:02:21]}  Nbd5 {[%clk 0:02:31]} 10. Qb3 {[%clk 0:02:17]}  Rb8 {[%clk 0:02:15]} 11. Bc4 {[%clk 0:02:05]}  e6 {[%clk 0:02:12]} 12. O-O {[%clk 0:02:05]}  Be7 {[%clk 0:02:07]} 13. Bg5 {[%clk 0:01:51]}  O-O {[%clk 0:01:58]} 14. Rad1 {[%clk 0:01:40]}  b6 {[%clk 0:01:48]} 15. c6 {[%clk 0:01:20]}  Nb4 {[%clk 0:01:21]} 16. Bxf6 {[%clk 0:01:02]}  gxf6 {[%clk 0:01:19]} 17. Rd2 {[%clk 0:00:45]}  Nxc6 {[%clk 0:01:16]} 18. d5 {[%clk 0:00:43]}  Na5 {[%clk 0:01:13]} 19. Qa4 {[%clk 0:00:43]}  Nxc4 {[%clk 0:01:08]} 20. Qxc4 {[%clk 0:00:44]}  Bd6 {[%clk 0:00:47]} 21. Nh4 {[%clk 0:00:32]}  Bg6 {[%clk 0:00:45]} 22. dxe6 {[%clk 0:00:29]}  Bxh2+ {[%clk 0:00:43]} 23. Kxh2 {[%clk 0:00:27]}  Qxd2 {[%clk 0:00:44]} 24. Nxg6 {[%clk 0:00:03]}  hxg6 {[%clk 0:00:43]} 25. Ne4 {[%clk 0:00:02]}  Qf4+ {[%clk 0:00:43]} 26. g3 {[%clk 0:00:02]}  Qf5 {[%clk 0:00:40]} 27. e7 {[%clk 0:00:02]}  Rfe8 {[%clk 0:00:39]} 28. Qc6 {[%clk 0:00:02]}  Kg7 {[%clk 0:00:31]} 29. Kg2 {[%clk 0:00:01]}  Rxe7 {[%clk 0:00:31]} 0-1


[Site "https://www.chess.com"]

[Event "Titled Tuesday Blitz December 27 Late 2022"]
[White "Poliakova, Varvara"]
[Black "Vifleemskaia, Svetlana"]
[WhiteFideId "13518313"]
[BlackFideId "4129490"]
[WhiteElo "2010"]
[BlackElo "1971"]
[Result "1-0"]
[Round "03"]
[TimeControl "180+2"]
[Date "2022.12.27"]
[WhiteClock "0:00:39"]
[BlackClock "0:00:01"]

1. e4 {[%clk 0:02:51]}  e5 {[%clk 0:02:59]} 2. Nf3 {[%clk 0:02:50]}  Nc6 {[%clk 0:02:59]} 3. Bc4 {[%clk 0:02:49]}  Nf6 {[%clk 0:02:59]} 4. d3 {[%clk 0:02:41]}  Be7 {[%clk 0:02:57]} 5. c3 {[%clk 0:02:41]}  O-O {[%clk 0:02:58]} 6. Bb3 {[%clk 0:02:40]}  d5 {[%clk 0:02:59]} 7. Nbd2 {[%clk 0:02:40]}  a5 {[%clk 0:02:53]} 8. O-O {[%clk 0:02:28]}  a4 {[%clk 0:02:53]} 9. Bxa4 {[%clk 0:02:26]}  dxe4 {[%clk 0:02:48]} 10. dxe4 {[%clk 0:02:27]}  Bg4 {[%clk 0:02:39]} 11. Bc2 {[%clk 0:02:20]}  h6 {[%clk 0:02:27]} 12. h3 {[%clk 0:02:19]}  Bh5 {[%clk 0:02:19]} 13. Qe2 {[%clk 0:02:10]}  Bc5 {[%clk 0:02:11]} 14. Rd1 {[%clk 0:02:08]}  Qe7 {[%clk 0:02:10]} 15. Nf1 {[%clk 0:02:07]}  g5 {[%clk 0:02:02]} 16. Ng3 {[%clk 0:02:06]}  Bg6 {[%clk 0:02:01]} 17. b4 {[%clk 0:01:44]}  Bb6 {[%clk 0:01:57]} 18. a4 {[%clk 0:01:44]}  Nh5 {[%clk 0:01:55]} 19. a5 {[%clk 0:01:38]}  Nxg3 {[%clk 0:01:53]} 20. Qb5 {[%clk 0:01:29]}  Nh5 {[%clk 0:01:09]} 21. Bb2 {[%clk 0:01:23]}  Ba7 {[%clk 0:01:03]} 22. Qxb7 {[%clk 0:01:22]}  Qe6 {[%clk 0:00:51]} 23. Qxc7 {[%clk 0:01:13]}  Rfc8 {[%clk 0:00:48]} 24. Qd6 {[%clk 0:01:05]}  Nf4 {[%clk 0:00:34]} 25. Qxe6 {[%clk 0:01:03]}  Nxe6 {[%clk 0:00:31]} 26. b5 {[%clk 0:01:04]}  Nxa5 {[%clk 0:00:26]} 27. Rd7 {[%clk 0:00:51]}  Nc4 {[%clk 0:00:20]} 28. Raxa7 {[%clk 0:00:43]}  Rxa7 {[%clk 0:00:20]} 29. Rxa7 {[%clk 0:00:44]}  Nxb2 {[%clk 0:00:20]} 30. b6 {[%clk 0:00:44]}  Rxc3 {[%clk 0:00:15]} 31. b7 {[%clk 0:00:44]}  Rxc2 {[%clk 0:00:13]} 32. b8=Q+ {[%clk 0:00:43]}  Kg7 {[%clk 0:00:14]} 33. Qxe5+ {[%clk 0:00:44]}  Kh7 {[%clk 0:00:13]} 34. Qxe6 {[%clk 0:00:42]}  Rc1+ {[%clk 0:00:10]} 35. Kh2 {[%clk 0:00:41]}  Nd3 {[%clk 0:00:10]} 36. Rxf7+ {[%clk 0:00:40]}  Bxf7 {[%clk 0:00:09]} 37. Qxf7+ {[%clk 0:00:41]}  Kh8 {[%clk 0:00:09]} 38. e5 {[%clk 0:00:42]}  Nxf2 {[%clk 0:00:07]} 39. e6 {[%clk 0:00:38]}  Rh1+ {[%clk 0:00:01]} 40. Kg3 {[%clk 0:00:38]}  Ne4+ {[%clk 0:00:01]} 41. Kg4 {[%clk 0:00:39]} 1-0


[Site "https://www.chess.com"]

[Event "Titled Tuesday Blitz December 27 Late 2022"]
[White "Przybylski, Wojciech"]
[Black "Oparin, Grigoriy"]
[WhiteFideId "1117599"]
[BlackFideId "24125890"]
[WhiteElo "2321"]
[BlackElo "2667"]
[Result "0-1"]
[Round "03"]
[TimeControl "180+2"]
[Date "2022.12.27"]
[WhiteClock "0:00:04"]
[BlackClock "0:00:16"]

1. e4 {[%clk 0:02:59]}  c5 {[%clk 0:03:00]} 2. Nf3 {[%clk 0:02:58]}  Nc6 {[%clk 0:03:01]} 3. Bb5 {[%clk 0:02:57]}  d6 {[%clk 0:02:59]} 4. O-O {[%clk 0:02:56]}  Nf6 {[%clk 0:02:58]} 5. Re1 {[%clk 0:02:55]}  Bd7 {[%clk 0:02:53]} 6. c3 {[%clk 0:02:54]}  a6 {[%clk 0:02:53]} 7. Bf1 {[%clk 0:02:53]}  Bg4 {[%clk 0:02:52]} 8. h3 {[%clk 0:02:52]}  Bxf3 {[%clk 0:02:52]} 9. Qxf3 {[%clk 0:02:52]}  g6 {[%clk 0:02:53]} 10. d3 {[%clk 0:02:51]}  Bg7 {[%clk 0:02:53]} 11. Bg5 {[%clk 0:02:49]}  O-O {[%clk 0:02:54]} 12. Nd2 {[%clk 0:02:48]}  b5 {[%clk 0:02:54]} 13. Rad1 {[%clk 0:02:45]}  Rb8 {[%clk 0:02:51]} 14. g3 {[%clk 0:02:40]}  a5 {[%clk 0:02:51]} 15. Bg2 {[%clk 0:02:39]}  b4 {[%clk 0:02:51]} 16. Qe3 {[%clk 0:02:36]}  Nd7 {[%clk 0:02:46]} 17. Bh6 {[%clk 0:02:32]}  bxc3 {[%clk 0:02:46]} 18. bxc3 {[%clk 0:02:32]}  Bxc3 {[%clk 0:02:40]} 19. Bxf8 {[%clk 0:02:31]}  Nxf8 {[%clk 0:02:37]} 20. Rb1 {[%clk 0:02:29]}  Rc8 {[%clk 0:02:30]} 21. Rec1 {[%clk 0:02:26]}  Bg7 {[%clk 0:02:28]} 22. Kh2 {[%clk 0:02:11]}  Ne6 {[%clk 0:02:27]} 23. f4 {[%clk 0:02:09]}  Ned4 {[%clk 0:02:26]} 24. Nc4 {[%clk 0:02:04]}  a4 {[%clk 0:02:24]} 25. e5 {[%clk 0:01:53]}  dxe5 {[%clk 0:02:20]} 26. fxe5 {[%clk 0:01:52]}  h5 {[%clk 0:02:17]} 27. Nb6 {[%clk 0:01:44]}  Rb8 {[%clk 0:02:05]} 28. Nxa4 {[%clk 0:01:38]}  Rxb1 {[%clk 0:01:58]} 29. Rxb1 {[%clk 0:01:36]}  Nxe5 {[%clk 0:01:54]} 30. Nxc5 {[%clk 0:01:28]}  Kh7 {[%clk 0:01:44]} 31. Ne4 {[%clk 0:01:02]}  f6 {[%clk 0:01:33]} 32. Nf2 {[%clk 0:00:31]}  Nf5 {[%clk 0:01:27]} 33. Qe4 {[%clk 0:00:30]}  Qa5 {[%clk 0:01:24]} 34. g4 {[%clk 0:00:23]}  hxg4 {[%clk 0:01:12]} 35. Nxg4 {[%clk 0:00:19]}  Nf7 {[%clk 0:00:56]} 36. Qd5 {[%clk 0:00:16]}  Qc7+ {[%clk 0:00:55]} 37. Kg1 {[%clk 0:00:16]}  Ng5 {[%clk 0:00:47]} 38. Rf1 {[%clk 0:00:07]}  Nh4 {[%clk 0:00:31]} 39. d4 {[%clk 0:00:06]}  Qg3 {[%clk 0:00:30]} 40. a4 {[%clk 0:00:04]}  Nxh3+ {[%clk 0:00:26]} 41. Kh1 {[%clk 0:00:04]}  Qxg4 {[%clk 0:00:23]} 42. Qe4 {[%clk 0:00:04]}  Qg3 {[%clk 0:00:20]} 43. a5 {[%clk 0:00:04]}  f5 {[%clk 0:00:16]} 0-1


[Site "https://www.chess.com"]

[Event "Titled Tuesday Blitz December 27 Late 2022"]
[White "Rose, Felix"]
[Black "Yurovskykh, Oleksandr"]
[WhiteFideId "5105722"]
[BlackFideId "14134020"]
[WhiteElo "2091"]
[BlackElo "2328"]
[Result "1/2-1/2"]
[Round "03"]
[TimeControl "180+2"]
[Date "2022.12.27"]
[WhiteClock "0:00:56"]
[BlackClock "0:00:08"]

1. e4 {[%clk 0:03:00]}  d5 {[%clk 0:02:52]} 2. exd5 {[%clk 0:02:59]}  Qxd5 {[%clk 0:02:53]} 3. Nc3 {[%clk 0:03:00]}  Qd8 {[%clk 0:02:53]} 4. d4 {[%clk 0:03:00]}  Nf6 {[%clk 0:02:52]} 5. Nf3 {[%clk 0:03:00]}  Bg4 {[%clk 0:02:52]} 6. h3 {[%clk 0:03:01]}  Bxf3 {[%clk 0:02:52]} 7. Qxf3 {[%clk 0:03:01]}  c6 {[%clk 0:02:53]} 8. Bf4 {[%clk 0:02:53]}  e6 {[%clk 0:02:52]} 9. O-O-O {[%clk 0:02:50]}  Bb4 {[%clk 0:02:53]} 10. g4 {[%clk 0:02:49]}  Bxc3 {[%clk 0:02:52]} 11. Qxc3 {[%clk 0:02:48]}  Nd5 {[%clk 0:02:49]} 12. Qg3 {[%clk 0:02:48]}  Nxf4 {[%clk 0:02:48]} 13. Qxf4 {[%clk 0:02:49]}  Nd7 {[%clk 0:02:24]} 14. Bd3 {[%clk 0:02:42]}  Qb8 {[%clk 0:02:13]} 15. Qg5 {[%clk 0:02:38]}  h6 {[%clk 0:01:56]} 16. Qd2 {[%clk 0:02:24]}  Qd6 {[%clk 0:01:49]} 17. Be4 {[%clk 0:02:05]}  O-O-O {[%clk 0:01:48]} 18. Qa5 {[%clk 0:01:58]}  Kb8 {[%clk 0:01:46]} 19. Rd3 {[%clk 0:01:57]}  Nf6 {[%clk 0:01:09]} 20. Bg2 {[%clk 0:01:48]}  Qf4+ {[%clk 0:00:48]} 21. Qd2 {[%clk 0:01:47]}  Qxd2+ {[%clk 0:00:46]} 22. Rxd2 {[%clk 0:01:47]}  Nd5 {[%clk 0:00:42]} 23. Bxd5 {[%clk 0:01:45]}  Rxd5 {[%clk 0:00:41]} 24. c3 {[%clk 0:01:42]}  Rhd8 {[%clk 0:00:40]} 25. Re2 {[%clk 0:01:42]}  h5 {[%clk 0:00:38]} 26. f4 {[%clk 0:01:40]}  Rh8 {[%clk 0:00:37]} 27. Rhh2 {[%clk 0:01:38]}  Kc7 {[%clk 0:00:36]} 28. Kc2 {[%clk 0:01:38]}  Rdd8 {[%clk 0:00:33]} 29. g5 {[%clk 0:01:36]}  g6 {[%clk 0:00:33]} 30. h4 {[%clk 0:01:35]}  Rd5 {[%clk 0:00:33]} 31. Re5 {[%clk 0:01:35]}  Rhd8 {[%clk 0:00:33]} 32. Rhe2 {[%clk 0:01:35]}  a5 {[%clk 0:00:28]} 33. Rxd5 {[%clk 0:01:30]}  Rxd5 {[%clk 0:00:21]} 34. Re5 {[%clk 0:01:30]}  Kd6 {[%clk 0:00:21]} 35. a4 {[%clk 0:01:28]}  b5 {[%clk 0:00:19]} 36. b3 {[%clk 0:01:25]}  bxa4 {[%clk 0:00:16]} 37. bxa4 {[%clk 0:01:24]}  Kc7 {[%clk 0:00:13]} 38. Rxd5 {[%clk 0:01:18]}  exd5 {[%clk 0:00:06]} 39. Kd3 {[%clk 0:01:18]}  Kd6 {[%clk 0:00:07]} 40. Ke3 {[%clk 0:01:17]}  Ke6 {[%clk 0:00:07]} 41. Kf2 {[%clk 0:01:15]}  f6 {[%clk 0:00:08]} 42. Ke3 {[%clk 0:01:06]}  Kf5 {[%clk 0:00:07]} 43. Kf3 {[%clk 0:01:05]}  Ke6 {[%clk 0:00:06]} 44. Ke3 {[%clk 0:01:04]}  Ke7 {[%clk 0:00:06]} 45. Kf3 {[%clk 0:01:00]}  Kf7 {[%clk 0:00:06]} 46. Ke3 {[%clk 0:01:00]}  Ke6 {[%clk 0:00:07]} 47. Ke2 {[%clk 0:00:57]}  fxg5 {[%clk 0:00:05]} 48. fxg5 {[%clk 0:00:57]}  Kd6 {[%clk 0:00:05]} 49. Ke3 {[%clk 0:00:56]}  Ke6 {[%clk 0:00:06]} 50. Kf4 {[%clk 0:00:56]}  Kd6 {[%clk 0:00:06]} 51. Ke3 {[%clk 0:00:56]}  Ke6 {[%clk 0:00:07]} 52. Kf4 {[%clk 0:00:56]}  Kd6 {[%clk 0:00:08]} 53. Ke3 {[%clk 0:00:56]} 1/2-1/2


[Site "https://www.chess.com"]